bitfinex/quotes_SOLUSD_20241107
["timestamp","ask_amount","ask_price","bid_price","bid_amount"]
[1730973981570,7.90670836,187.63,187.57,7.90670836]
[1730973982000,7.90670836,187.63,187.54,15.2518]
[1730973982295,7.90670836,187.63,187.58,0.12549]
[1730973982700,7.90670836,187.63,187.6,0.12549]
[1730973983499,31.62683344,187.7,187.55,27.90670836]
[1730973983500,7.90670836,187.61,187.55,27.90670836]
[1730973983690,16.6237,187.68,187.51,30.11252217]
[1730973983691,7.90670836,187.59,187.53,7.90670836]
[1730973984128,7.90670836,187.57,187.51,7.90670836]
[1730973984207,16.4923,187.61,187.5,5.50593202]
[1730973984208,7.90670836,187.56,187.5,5.50593202]
[1730973984382,7.90670836,187.56,187.5,7.90670836]
[1730973984878,7.90670836,187.56,187.51,0.12549]
[1730973985495,16.4923,187.61,187.52,0.12549]
[1730973985694,7.90670836,187.57,187.52,0.12549]
[1730973986382,7.90670836,187.56,187.51,23.902374]
[1730973986698,7.90670836,187.57,187.51,31.80908236]
[1730973988191,7.90670836,187.56,187.51,23.902374]
[1730973988383,7.90670836,187.57,187.51,31.80908236]
[1730973988775,16.4923,187.61,187.46,5.50489266]
[1730973988776,7.90670836,187.55,187.46,5.50489266]
[1730973989005,31.72683344,187.6,187.45,15.7338]
[1730973989006,7.90670836,187.53,187.47,7.90670836]
[1730973989199,7.90670836,187.53,187.48,0.12549]
[1730973989985,7.90670836,187.53,187.46,20.0]
[1730973990183,7.90670836,187.53,187.47,7.90670836]
[1730973990889,16.4923,187.61,187.49,8.03219836]
[1730973991119,7.90670836,187.55,187.49,8.03219836]
[1730973992001,7.90670836,187.54,187.49,8.03219836]
[1730973992298,7.90670836,187.54,187.49,0.12549]
[1730973992886,7.90670836,187.54,187.47,23.902374]
[1730973993188,7.90670836,187.54,187.49,0.12549]
[1730973994106,7.90670836,187.54,187.46,20.0]
[1730973994314,7.90670836,187.54,187.48,7.90670836]
[1730973994654,7.90670836,187.54,187.49,0.12549]
[1730973994809,16.4923,187.61,187.49,8.03219836]
[1730973995015,7.90670836,187.56,187.51,0.12549]
[1730973995384,16.4923,187.61,187.51,8.03219836]
[1730973995385,7.90670836,187.57,187.51,8.03219836]
[1730973995689,16.4923,187.61,187.53,0.12549]
[1730973995893,7.90670836,187.58,187.53,0.12549]
[1730973996587,7.90670836,187.57,187.51,7.90670836]
[1730973996786,7.90670836,187.57,187.52,0.12549]
[1730973997191,7.90670836,187.57,187.52,23.902374]
[1730973997703,7.90670836,187.58,187.52,31.80908236]
[1730973998381,7.90670836,187.58,187.46,50.31252217]
[1730973998382,7.90670836,187.58,187.46,20.1]
[1730973998587,7.90670836,187.57,187.51,7.90670836]
[1730973998789,7.90670836,187.57,187.52,0.12549]
[1730973999479,16.4923,187.61,187.52,0.12549]
[1730973999480,7.90670836,187.58,187.52,31.80908236]
[1730973999686,7.90670836,187.58,187.52,8.03219836]
[1730974000205,7.90670836,187.55,187.49,23.776884]
[1730974000410,7.90670836,187.55,187.49,31.68359236]
[1730974001490,16.4923,187.61,187.49,31.68359236]
[1730974001491,7.90670836,187.56,187.5,8.03219836]
[1730974002001,7.90670836,187.55,187.5,0.12549]
[1730974002201,31.62683344,187.6,187.45,15.7338]
[1730974002202,7.90670836,187.54,187.45,15.7338]
[1730974002419,7.90670836,187.53,187.47,7.90670836]
[1730974002615,7.90670836,187.53,187.45,15.7338]
[1730974002817,7.90670836,187.53,187.48,0.12549]
[1730974003290,7.90670836,187.53,187.47,7.90670836]
[1730974003485,6.4438,187.57,187.44,6.3992]
[1730974003698,7.90670836,187.52,187.47,0.12549]
[1730974004298,7.90670836,187.52,187.47,7.90670836]
[1730974005199,6.4438,187.57,187.45,20.0]
[1730974005200,7.90670836,187.5,187.45,7.90670836]
[1730974005720,7.90670836,187.49,187.43,7.90670836]
[1730974005912,7.90670836,187.5,187.44,7.90670836]
[1730974006309,7.90670836,187.49,187.43,7.90670836]
[1730974006605,7.90670836,187.5,187.44,8.03219836]
[1730974007109,7.90670836,187.49,187.44,0.12549]
[1730974007295,7.90670836,187.5,187.44,7.90670836]
[1730974008715,7.90670836,187.49,187.44,7.90670836]
[1730974009597,7.90670836,187.48,187.4,20.0]
[1730974009942,7.90670836,187.5,187.45,7.90670836]
[1730974010498,7.90670836,187.51,187.45,7.90670836]
[1730974010704,7.90670836,187.5,187.45,7.90670836]
[1730974012808,7.90670836,187.5,187.4,43.902374]
[1730974013104,7.90670836,187.5,187.45,7.90670836]
[1730974014226,7.90670836,187.51,187.46,7.90670836]
[1730974014392,7.90670836,187.51,187.47,0.12549]
[1730974014598,7.90670836,187.52,187.47,0.12549]
[1730974015416,7.90670836,187.51,187.41,0.22549]
[1730974015722,7.90670836,187.52,187.47,0.12549]
[1730974017018,7.90670836,187.52,187.48,0.12549]
[1730974017906,7.90670836,187.52,187.42,0.1]
[1730974018114,7.90670836,187.52,187.47,0.12549]
[1730974019030,21.6196,187.57,187.4,43.776884]
[1730974019031,7.90670836,187.51,187.4,43.776884]
[1730974019202,7.90670836,187.51,187.46,0.12549]
[1730974021218,7.90670836,187.5,187.44,7.90670836]
[1730974021420,7.90670836,187.5,187.45,0.12549]
[1730974022336,7.90670836,187.5,187.41,0.12549]
[1730974022501,7.90670836,187.5,187.45,0.12549]
[1730974023213,21.6196,187.57,187.45,0.12549]
[1730974023509,7.90670836,187.5,187.41,0.12549]
[1730974023718,7.90670836,187.5,187.45,0.12549]
[1730974023917,7.90670836,187.51,187.45,8.03219836]
[1730974025626,7.90670836,187.51,187.41,0.22549]
[1730974025931,7.90670836,187.51,187.46,0.12549]
[1730974026922,21.6196,187.57,187.46,0.12549]
[1730974027125,21.6196,187.57,187.47,0.12549]
[1730974027325,7.90670836,187.53,187.47,0.12549]
[1730974028136,7.90670836,187.52,187.47,0.12549]
[1730974028626,7.90670836,187.51,187.42,0.22549]
[1730974028837,7.90670836,187.52,187.47,0.12549]
[1730974029321,7.90670836,187.53,187.48,0.12549]
[1730974030109,21.6196,187.57,187.48,7.90670836]
[1730974030329,7.90670836,187.54,187.49,23.902374]
[1730974031616,7.90670836,187.54,187.49,0.12549]
[1730974033423,7.90670836,187.53,187.47,7.90670836]
[1730974033633,7.90670836,187.52,187.47,7.90670836]
[1730974034531,7.90670836,187.52,187.48,0.12549]
[1730974035335,7.90670836,187.51,187.46,23.902374]
[1730974036613,7.90670836,187.52,187.46,31.80908236]
[1730974037117,7.90670836,187.53,187.48,0.12549]
[1730974038235,21.6196,187.57,187.48,23.902374]
[1730974038532,7.90670836,187.53,187.48,23.902374]
[1730974039117,21.6196,187.57,187.5,0.12549]
[1730974039118,7.90670836,187.55,187.5,0.12549]
[1730974039528,7.90670836,187.54,187.5,0.12549]
[1730974039737,7.90670836,187.55,187.49,8.03219836]
[1730974040279,0.1,187.63,187.49,8.03219836]
[1730974040280,13.99680836,187.68,187.55,20.22549]
[1730974040534,7.90670836,187.67,187.62,0.12549]
[1730974040935,7.90670836,187.67,187.63,0.70921985]
[1730974041556,7.90670836,187.68,187.64,0.12549]
[1730974041827,7.90670836,187.69,187.64,0.12549]
[1730974042029,6.0901,187.73,187.65,8.03219836]
[1730974042233,0.1,187.77,187.66,7.90670836]
[1730974042234,7.90670836,187.72,187.66,7.90670836]
[1730974043521,15.4515,187.75,187.66,7.90670836]
[1730974043721,7.90670836,187.72,187.63,0.12549]
[1730974043927,7.90670836,187.72,187.66,7.90670836]
[1730974044534,7.90670836,187.72,187.67,0.12549]
[1730974044730,15.4515,187.75,187.67,0.12549]
[1730974044930,7.90670836,187.72,187.67,0.12549]
[1730974045833,7.90670836,187.72,187.67,7.90670836]
[1730974046643,15.4515,187.75,187.68,0.12549]
[1730974047146,7.90670836,187.73,187.68,0.12549]
[1730974047837,7.90670836,187.74,187.69,0.12549]
[1730974048148,15.4515,187.75,187.71,0.12549]
[1730974048437,7.90670836,187.75,187.71,0.12549]
[1730974049037,7.90670836,187.75,187.7,0.12549]
[1730974049742,7.90670836,187.76,187.69,23.776884]
[1730974049917,7.90670836,187.72,187.66,7.90670836]
[1730974050445,7.90670836,187.71,187.67,0.12549]
[1730974050624,6.6126,187.78,187.67,0.12549]
[1730974050823,6.6126,187.78,187.67,8.03219836]
[1730974050824,7.90670836,187.73,187.67,8.03219836]
[1730974051029,7.90670836,187.74,187.69,0.12549]
[1730974051228,7.90670836,187.73,187.69,0.12549]
[1730974052234,7.90670836,187.73,187.68,0.12549]
[1730974052633,7.90670836,187.71,187.68,0.12549]
[1730974052942,7.90670836,187.7,187.65,23.776884]
[1730974053240,6.6126,187.78,187.66,0.12549]
[1730974053441,7.90670836,187.7,187.66,0.12549]
[1730974053836,7.90670836,187.71,187.66,0.12549]
[1730974054138,7.90670836,187.71,187.66,8.03219836]
[1730974054347,7.90670836,187.72,187.66,8.03219836]
[1730974054562,7.90670836,187.73,187.68,8.03219836]
[1730974054841,7.90670836,187.72,187.69,0.12549]
[1730974055048,7.90670836,187.73,187.69,0.12549]
[1730974055229,7.90670836,187.73,187.68,0.12549]
[1730974055649,7.90670836,187.74,187.68,8.03219836]
[1730974056024,7.90670836,187.72,187.68,0.12549]
[1730974056329,7.90670836,187.71,187.65,23.776884]
[1730974056550,7.90670836,187.71,187.66,0.12549]
[1730974057041,7.90670836,187.71,187.66,8.03219836]
[1730974058541,7.90670836,187.72,187.66,8.03219836]
[1730974060747,7.90670836,187.71,187.66,8.03219836]
[1730974061738,7.90670836,187.68,187.61,21.5301]
[1730974061923,7.90670836,187.67,187.57,6.6165]
[1730974062156,7.90670836,187.66,187.61,0.12549]
[1730974062350,7.90670836,187.67,187.61,8.03219836]
[1730974062728,7.90670836,187.67,187.58,0.12549]
[1730974063043,7.90670836,187.67,187.62,0.12549]
[1730974064732,7.90670836,187.65,187.61,0.12549]
[1730974065447,7.90670836,187.63,187.58,7.90670836]
[1730974065649,7.90670836,187.62,187.56,7.90670836]
[1730974066228,7.90670836,187.62,187.57,0.12549]
[1730974068743,7.90670836,187.62,187.56,7.90670836]
[1730974068744,7.90670836,187.62,187.56,23.902374]
[1730974069062,7.90670836,187.62,187.58,0.12549]
[1730974069454,7.90670836,187.62,187.57,0.12549]
[1730974069633,15.0537,187.64,187.55,7.90670836]
[1730974069634,7.90670836,187.6,187.55,7.90670836]
[1730974069830,15.0537,187.64,187.56,8.03219836]
[1730974070036,7.90670836,187.63,187.58,0.12549]
[1730974071754,7.90670836,187.62,187.57,0.12549]
[1730974073650,7.90670836,187.63,187.58,0.12549]
[1730974073842,7.90670836,187.63,187.58,8.03219836]
[1730974074636,7.90670836,187.63,187.53,20.0]
[1730974074637,7.90670836,187.64,187.59,7.90670836]
[1730974075254,15.4325,187.68,187.6,0.12549]
[1730974075554,7.90670836,187.64,187.59,7.90670836]
[1730974075752,7.90670836,187.64,187.59,0.12549]
[1730974075955,7.90670836,187.64,187.59,8.03219836]
[1730974077062,7.90670836,187.64,187.59,7.90670836]
[1730974078240,7.90670836,187.64,187.57,0.12549]
[1730974078545,7.90670836,187.64,187.59,0.12549]
[1730974078761,7.90670836,187.65,187.59,8.03219836]
[1730974079858,7.90670836,187.66,187.61,0.12549]
[1730974080064,7.90670836,187.65,187.61,0.12549]
[1730974081357,15.4325,187.68,187.61,8.03219836]
[1730974081575,7.90670836,187.67,187.61,8.03219836]
[1730974081940,6.0013,187.7,187.64,0.12549]
[1730974082247,16.6609,187.72,187.6,23.776884]
[1730974082248,24.56760836,187.72,187.68,0.12549]
[1730974082456,6.6532,187.75,187.62,43.902374]
[1730974082761,6.6532,187.75,187.69,0.12549]
[1730974082953,15.4057,187.77,187.69,8.03219836]
[1730974083262,7.90670836,187.75,187.7,7.90670836]
[1730974083440,7.90670836,187.75,187.65,0.12549]
[1730974083639,7.90670836,187.75,187.7,0.12549]
[1730974084365,7.90670836,187.75,187.64,20.0]
[1730974084638,7.90670836,187.75,187.7,0.12549]
[1730974085362,15.4057,187.77,187.72,0.12549]
[1730974085554,15.458,187.82,187.75,0.12549]
[1730974085761,7.90670836,187.8,187.75,0.12549]
[1730974086869,15.458,187.82,187.75,23.902374]
[1730974087062,7.90670836,187.81,187.75,31.80908236]
[1730974087446,7.90670836,187.8,187.75,23.902374]
[1730974087858,7.90670836,187.81,187.75,31.80908236]
[1730974088253,7.90670836,187.81,187.75,23.902374]
[1730974088455,7.90670836,187.81,187.75,31.80908236]
[1730974089452,15.458,187.82,187.77,7.90670836]
[1730974090057,23.36470836,187.82,187.76,8.03219836]
[1730974090262,7.90670836,187.8,187.76,0.12549]
[1730974090952,7.90670836,187.81,187.76,8.03219836]
[1730974091553,7.90670836,187.8,187.76,0.12549]
[1730974091775,15.458,187.82,187.76,0.12549]
[1730974091992,7.90670836,187.81,187.76,0.12549]
[1730974094969,7.90670836,187.81,187.76,8.03219836]
[1730974095267,15.458,187.82,187.76,8.03219836]
[1730974095268,7.90670836,187.82,187.78,0.12549]
[1730974095479,7.90670836,187.83,187.78,0.12549]
[1730974095977,7.90670836,187.84,187.8,0.12549]
[1730974096549,7.90670836,187.86,187.8,8.03219836]
[1730974097474,7.90670836,187.88,187.82,8.03219836]
[1730974098459,7.90670836,187.89,187.84,0.12549]
[1730974098774,15.3457,187.91,187.84,0.12549]
[1730974098986,6.6067,187.94,187.84,23.902374]
[1730974099232,7.90670836,187.9,187.84,31.68359236]
[1730974099370,7.90670836,187.9,187.85,0.12549]
[1730974100460,7.90670836,187.89,187.85,0.12549]
[1730974101963,7.90670836,187.88,187.81,21.7065]
[1730974102166,7.90670836,187.85,187.79,7.90670836]
[1730974102378,7.90670836,187.84,187.78,7.90670836]
[1730974102773,7.90670836,187.81,187.76,16.0907]
[1730974103065,7.90670836,187.81,187.77,0.12549]
[1730974103262,7.90670836,187.82,187.76,7.90670836]
[1730974103570,7.90670836,187.81,187.77,0.12549]
[1730974104793,7.90670836,187.82,187.77,23.902374]
[1730974105277,15.8493,187.87,187.77,23.902374]
[1730974105488,12.36706507,187.82,187.77,23.902374]
[1730974105782,12.36706507,187.8,187.77,23.902374]
[1730974105981,12.36706507,187.81,187.77,23.902374]
[1730974106565,12.36706507,187.81,187.76,23.902374]
[1730974107487,12.36706507,187.82,187.76,36.26943907]
[1730974107685,15.8493,187.87,187.8,0.12549]
[1730974107686,12.36706507,187.84,187.8,0.12549]
[1730974107980,12.36706507,187.85,187.8,0.12549]
[1730974108186,12.36706507,187.83,187.8,0.12549]
[1730974109167,12.36706507,187.81,187.73,20.0]
[1730974109375,12.36706507,187.8,187.74,12.36706507]
[1730974109635,12.36706507,187.8,187.74,12.49255507]
[1730974109776,12.36706507,187.81,187.76,0.12549]
[1730974110090,12.36706507,187.83,187.76,0.12549]
[1730974110304,12.36706507,187.83,187.78,0.12549]
[1730974110477,12.36706507,187.84,187.78,36.26943907]
[1730974110874,12.36706507,187.83,187.78,23.902374]
[1730974112190,6.2936,187.86,187.78,23.902374]
[1730974112191,12.36706507,187.81,187.78,23.902374]
[1730974112392,12.36706507,187.82,187.78,23.902374]
[1730974112587,12.36706507,187.82,187.77,23.776884]
[1730974112778,12.36706507,187.81,187.78,0.12549]
[1730974113094,12.36706507,187.82,187.78,0.12549]
[1730974113686,12.36706507,187.82,187.73,20.0]
[1730974113687,12.36706507,187.79,187.74,23.776884]
[1730974113895,12.36706507,187.79,187.73,36.14394907]
[1730974114110,12.36706507,187.78,187.72,6.1452]
[1730974114272,12.36706507,187.78,187.72,12.36706507]
[1730974114588,12.36706507,187.78,187.73,0.12549]
[1730974114970,12.36706507,187.79,187.73,12.49255507]
[1730974115172,12.36706507,187.78,187.74,0.12549]
[1730974116689,12.36706507,187.79,187.74,0.12549]
[1730974117071,12.36706507,187.8,187.74,0.12549]
[1730974117273,12.36706507,187.8,187.74,12.49255507]
[1730974118372,12.36706507,187.8,187.74,0.12549]
[1730974118595,12.36706507,187.79,187.74,0.12549]
[1730974118889,12.36706507,187.78,187.67,46.57922217]
[1730974119069,12.36706507,187.77,187.71,12.36706507]
[1730974119487,12.36706507,187.77,187.72,0.12549]
[1730974119880,12.36706507,187.78,187.72,12.49255507]
[1730974120193,12.36706507,187.76,187.71,0.12549]
[1730974121075,12.36706507,187.76,187.69,0.12549]
[1730974121282,12.36706507,187.76,187.51,15.98]
[1730974121283,12.36706507,187.73,187.64,6.4995]
[1730974121499,12.36706507,187.73,187.67,12.36706507]
[1730974121800,12.36706507,187.73,187.68,0.12549]
[1730974122188,6.4694,187.78,187.69,0.12549]
[1730974122189,12.36706507,187.74,187.69,0.12549]
[1730974122492,12.36706507,187.76,187.71,0.12549]
[1730974122692,18.83646507,187.78,187.72,12.49255507]
[1730974122900,12.36706507,187.76,187.64,6.4995]
[1730974123089,12.36706507,187.75,187.69,12.36706507]
[1730974123484,12.36706507,187.76,187.7,12.36706507]
[1730974123696,12.36706507,187.73,187.66,0.12549]
[1730974124197,12.36706507,187.73,187.65,23.776884]
[1730974124198,12.36706507,187.73,187.67,12.36706507]
[1730974124598,12.36706507,187.74,187.68,12.36706507]
[1730974124980,12.36706507,187.74,187.66,0.12549]
[1730974125184,12.36706507,187.74,187.68,12.36706507]
[1730974125394,7.92225647,187.74,187.68,7.92225647]
[1730974125708,6.4694,187.78,187.65,7.92225647]
[1730974125709,7.92225647,187.71,187.65,7.92225647]
[1730974125889,7.92225647,187.71,187.66,0.12549]
[1730974126789,7.92225647,187.71,187.65,8.04774647]
[1730974127106,7.92225647,187.71,187.66,7.92225647]
[1730974127408,6.4694,187.78,187.67,7.92225647]
[1730974127581,6.4694,187.78,187.63,0.12549]
[1730974127582,7.92225647,187.72,187.63,23.902374]
[1730974127787,7.92225647,187.72,187.67,7.92225647]
[1730974128581,7.92225647,187.72,187.63,23.902374]
[1730974128781,7.92225647,187.71,187.66,0.12549]
[1730974128987,7.92225647,187.72,187.67,7.92225647]
[1730974131284,7.92225647,187.73,187.67,7.92225647]
[1730974131484,7.92225647,187.72,187.64,0.12549]
[1730974131805,7.92225647,187.72,187.66,7.92225647]
[1730974133200,7.92225647,187.73,187.67,7.92225647]
[1730974134301,7.92225647,187.73,187.64,0.12549]
[1730974134501,7.92225647,187.73,187.67,7.92225647]
[1730974136407,6.4694,187.78,187.69,7.92225647]
[1730974136588,7.92225647,187.75,187.69,7.92225647]
[1730974137415,7.92225647,187.76,187.7,7.92225647]
[1730974138986,6.4694,187.78,187.64,0.12549]
[1730974138987,7.92225647,187.77,187.71,7.92225647]
[1730974139198,7.92225647,187.78,187.72,7.92225647]
[1730974139699,7.92225647,187.77,187.67,43.902374]
[1730974140005,7.92225647,187.78,187.72,8.04774647]
[1730974140214,24.49425647,187.8,187.74,7.92225647]
[1730974140404,7.92225647,187.8,187.74,7.92225647]
[1730974140812,6.1878,187.82,187.71,23.902374]
[1730974140813,7.92225647,187.81,187.71,23.902374]
[1730974140992,7.92225647,187.81,187.76,7.92225647]
[1730974141192,7.92225647,187.81,187.75,7.92225647]
[1730974142207,7.92225647,187.8,187.75,0.12549]
[1730974142593,7.92225647,187.81,187.75,7.92225647]
[1730974143010,7.92225647,187.81,187.72,0.12549]
[1730974143196,7.92225647,187.81,187.75,7.92225647]
[1730974144004,7.92225647,187.82,187.76,7.92225647]
[1730974144195,7.92225647,187.83,187.77,8.04774647]
[1730974144394,7.92225647,187.83,187.78,0.12549]
[1730974144716,7.92225647,187.82,187.78,0.12549]
[1730974144920,7.92225647,187.83,187.78,0.12549]
[1730974145699,7.92225647,187.81,187.75,7.92225647]
[1730974146297,7.92225647,187.79,187.73,23.776884]
[1730974146409,7.92225647,187.79,187.73,7.92225647]
[1730974146614,15.247,187.84,187.69,7.92225647]
[1730974146615,7.92225647,187.75,187.69,7.92225647]
[1730974146818,7.92225647,187.75,187.7,0.12549]
[1730974147008,7.92225647,187.76,187.7,8.04774647]
[1730974147321,7.92225647,187.77,187.71,7.92225647]
[1730974147521,0.1,187.82,187.71,0.12549]
[1730974147522,7.92225647,187.76,187.71,0.12549]
[1730974147897,7.92225647,187.75,187.71,0.12549]
[1730974148097,7.92225647,187.75,187.69,7.92225647]
[1730974148905,7.92225647,187.75,187.7,0.12549]
[1730974150941,7.92225647,187.74,187.68,7.92225647]
[1730974151498,6.2517,187.79,187.67,23.776884]
[1730974151499,7.92225647,187.72,187.67,23.776884]
[1730974151699,7.92225647,187.72,187.68,0.12549]
[1730974152697,7.92225647,187.72,187.66,7.92225647]
[1730974152904,7.92225647,187.72,187.67,0.12549]
[1730974154225,7.92225647,187.72,187.63,20.0]
[1730974154402,7.92225647,187.72,187.67,0.12549]
[1730974156925,7.92225647,187.72,187.65,0.12549]
[1730974157221,7.92225647,187.72,187.68,0.12549]
[1730974157522,7.92225647,187.74,187.68,7.92225647]
[1730974157727,7.92225647,187.74,187.69,0.70921986]
[1730974158316,7.92225647,187.73,187.69,0.70921986]
[1730974158717,15.1505,187.76,187.7,0.12549]
[1730974158920,15.1505,187.76,187.7,8.04774647]
[1730974158921,7.92225647,187.75,187.7,8.04774647]
[1730974159725,7.92225647,187.75,187.65,0.12549]
[1730974160022,7.92225647,187.75,187.7,0.12549]
[1730974160526,6.2517,187.79,187.7,0.12549]
[1730974160527,15.1303,187.81,187.72,0.12549]
[1730974160723,15.1303,187.81,187.72,8.04774647]
[1730974161021,7.92225647,187.77,187.72,0.12549]
[1730974161620,7.92225647,187.76,187.71,0.12549]
[1730974162809,7.92225647,187.75,187.71,0.12549]
[1730974163005,31.68902588,187.8,187.67,22.917]
[1730974163006,7.92225647,187.74,187.69,23.776884]
[1730974163212,7.92225647,187.74,187.7,0.12549]
[1730974164643,15.2303,187.81,187.7,8.04774647]
[1730974164644,7.92225647,187.76,187.7,8.04774647]
[1730974165418,7.92225647,187.75,187.7,0.12549]
[1730974166635,7.92225647,187.76,187.7,8.04774647]
[1730974166824,7.92225647,187.75,187.7,0.12549]
[1730974171416,7.92225647,187.76,187.7,0.12549]
[1730974172340,7.92225647,187.75,187.7,0.12549]
[1730974173630,7.92225647,187.74,187.7,0.12549]
[1730974173827,7.92225647,187.75,187.7,0.12549]
[1730974174343,7.92225647,187.74,187.7,0.12549]
[1730974174512,7.92225647,187.74,187.67,7.92225647]
[1730974174716,7.92225647,187.72,187.63,22.1942]
[1730974174931,7.92225647,187.7,187.64,7.92225647]
[1730974175237,7.92225647,187.71,187.66,0.12549]
[1730974176024,7.92225647,187.71,187.66,23.902374]
[1730974178660,7.92225647,187.71,187.66,31.82463047]
[1730974178848,7.92225647,187.72,187.66,31.82463047]
[1730974180540,7.92225647,187.71,187.66,23.902374]
[1730974180744,7.92225647,187.73,187.66,23.902374]
[1730974180946,7.92225647,187.73,187.68,0.12549]
[1730974181146,17.12502079,187.79,187.68,8.04774647]
[1730974181511,7.92225647,187.76,187.7,7.92225647]
[1730974181568,15.8252,187.79,187.7,0.12549]
[1730974181569,7.92225647,187.75,187.7,0.12549]
[1730974182430,7.92225647,187.74,187.69,0.12549]
[1730974182943,7.92225647,187.74,187.67,0.12549]
[1730974183151,7.92225647,187.73,187.66,23.776884]
[1730974183445,7.92225647,187.72,187.67,0.12549]
[1730974186661,23.24075647,187.71,187.6,30.11252217]
[1730974186946,15.3185,187.71,187.64,7.92225647]
[1730974187127,23.24075647,187.71,187.65,8.04774647]
[1730974187644,7.92225647,187.71,187.65,8.04774647]
[1730974187823,15.7879,187.75,187.67,8.04774647]
[1730974188028,7.92225647,187.73,187.67,8.04774647]
[1730974188927,7.92225647,187.73,187.65,0.12549]
[1730974189127,7.92225647,187.73,187.68,0.12549]
[1730974189644,23.71015647,187.75,187.69,7.92225647]
[1730974190752,7.92225647,187.74,187.69,0.12549]
[1730974191953,7.92225647,187.74,187.66,0.12549]
[1730974192149,7.92225647,187.74,187.69,0.12549]
[1730974193346,7.92225647,187.73,187.68,0.12549]
[1730974193934,7.92225647,187.73,187.66,0.12549]
[1730974194135,7.92225647,187.73,187.68,0.12549]
[1730974194442,7.92225647,187.74,187.68,8.04774647]
[1730974194941,7.92225647,187.74,187.66,0.12549]
[1730974195144,7.92225647,187.74,187.69,0.12549]
[1730974195739,7.92225647,187.73,187.68,0.12549]
[1730974196376,7.92225647,187.74,187.68,0.12549]
[1730974196953,22.09560417,187.8,187.69,23.902374]
[1730974197260,7.92225647,187.77,187.71,0.12549]
[1730974197547,7.92225647,187.76,187.71,0.12549]
[1730974197740,7.92225647,187.76,187.7,0.12549]
[1730974197939,7.92225647,187.74,187.7,0.12549]
[1730974198138,7.92225647,187.73,187.67,7.92225647]
[1730974198456,7.92225647,187.74,187.68,0.12549]
[1730974198845,7.92225647,187.73,187.65,0.12549]
[1730974199048,7.92225647,187.74,187.69,0.12549]
[1730974200450,7.92225647,187.73,187.68,0.12549]
[1730974200757,7.92225647,187.73,187.66,7.92225647]
[1730974200941,7.92225647,187.73,187.64,22.481]
[1730974200942,7.92225647,187.73,187.65,20.12549]
[1730974201140,7.92225647,187.73,187.67,0.12549]
[1730974201333,7.92225647,187.73,187.67,8.04774647]
[1730974201534,7.92225647,187.74,187.69,0.12549]
[1730974202762,7.92225647,187.73,187.68,0.12549]
[1730974203256,7.92225647,187.74,187.68,8.04774647]
[1730974203455,7.92225647,187.74,187.69,0.12549]
[1730974203639,7.92225647,187.73,187.69,0.12549]
[1730974203839,7.92225647,187.73,187.66,0.12549]
[1730974204038,7.92225647,187.73,187.68,0.12549]
[1730974204351,7.92225647,187.73,187.67,8.04774647]
[1730974204542,7.92225647,187.73,187.67,0.12549]
[1730974204739,7.92225647,187.73,187.67,8.04774647]
[1730974206661,7.92225647,187.74,187.67,8.04774647]
[1730974206959,7.92225647,187.74,187.66,23.776884]
[1730974207139,7.92225647,187.74,187.69,0.12549]
[1730974208148,16.5787,187.8,187.7,0.12549]
[1730974208387,7.92225647,187.76,187.7,8.04774647]
[1730974208671,7.92225647,187.77,187.71,7.92225647]
[1730974208959,7.92225647,187.76,187.71,0.12549]
[1730974209559,16.5787,187.8,187.71,0.12549]
[1730974209854,16.5787,187.8,187.72,20.12549]
[1730974210058,16.5689,187.85,187.76,8.04774647]
[1730974210242,7.92225647,187.82,187.76,8.04774647]
[1730974210436,16.5689,187.85,187.78,0.12549]
[1730974210659,7.92225647,187.83,187.78,0.12549]
[1730974211040,5.50881206,187.86,187.78,31.82463047]
[1730974211260,7.92225647,187.85,187.8,0.12549]
[1730974211465,7.92225647,187.86,187.8,8.04774647]
[1730974212358,15.7774,187.9,187.8,8.04774647]
[1730974212543,15.7774,187.9,187.83,7.92225647]
[1730974212864,7.92225647,187.9,187.82,0.12549]
[1730974213047,7.92225647,187.9,187.84,7.92225647]
[1730974213439,15.7709,187.94,187.85,0.12549]
[1730974213661,7.92225647,187.9,187.85,0.12549]
[1730974213849,7.92225647,187.9,187.81,20.12549]
[1730974214048,7.92225647,187.9,187.85,0.12549]
[1730974214763,7.92225647,187.91,187.86,0.12549]
[1730974215250,7.92225647,187.92,187.86,8.04774647]
[1730974215561,7.92225647,187.92,187.86,7.92225647]
[1730974215957,7.92225647,187.92,187.87,0.12549]
[1730974216150,15.7709,187.94,187.87,0.12549]